bitfinex-derivatives/quotes_ETHF0:USTF0_20251006
["timestamp","ask_amount","ask_price","bid_price","bid_amount"]
[1759783840075,4.3168,4691.3,4691.2,0.68587603]
[1759783842471,1.10901,4691.1,4691.0,0.213]
[1759783842675,1.10901,4691.1,4691.0,0.4339]
[1759783843172,3.2078,4691.3,4690.7,0.00209508]
[1759783843173,1.10903,4690.8,4690.7,0.60653508]
[1759783843374,1.10903,4690.8,4690.7,1.14393508]
[1759783846981,1.10903,4690.8,4690.7,1.35363508]
[1759783848976,0.7255,4690.8,4690.7,1.35363508]
[1759783849176,0.5372,4691.1,4691.0,1.12122]
[1759783849482,0.7006,4691.2,4691.1,0.7377]
[1759783849679,0.9207,4691.2,4691.1,0.7377]
[1759783850472,0.9207,4691.2,4691.1,1.12121]
[1759783850680,0.9207,4691.2,4691.1,0.9507]
[1759783851178,1.1276,4691.2,4691.1,0.9507]
[1759783851782,0.38353,4690.8,4690.7,1.91474944]
[1759783851976,1.12763,4690.8,4690.7,2.86544944]
[1759783853481,1.12763,4690.8,4690.7,2.65244944]
[1759783853683,0.7441,4690.8,4690.7,2.86544944]
[1759783853984,0.2201,4690.8,4690.7,2.86544944]
[1759783854176,0.60362,4691.0,4690.9,0.81042]
[1759783854381,0.92072,4691.0,4690.9,1.12122]
[1759783855384,0.38352,4691.0,4690.9,0.7377]
[1759783855576,0.92072,4691.0,4690.9,0.7377]
[1759783856181,0.92072,4691.0,4690.9,1.12122]
[1759783856481,3.2078,4691.8,4690.9,0.7377]
[1759783856676,0.60356,4691.7,4691.6,0.7377]
[1759783856983,0.92066,4691.7,4691.6,0.9507]
[1759783857388,1.12756,4691.7,4691.6,0.9507]
[1759783860274,1.12756,4691.7,4691.6,1.33417]
[1759783861082,1.12756,4691.7,4691.6,0.9507]
[1759783862785,1.12756,4691.7,4691.6,1.33417]
[1759783863786,0.38346,4691.7,4691.6,1.33417]
[1759783864286,1.12756,4691.7,4691.6,1.33417]
[1759783864490,1.12756,4691.7,4691.6,0.9507]
[1759783869790,1.12756,4691.7,4691.6,1.33417]
[1759783869989,1.12756,4691.7,4691.6,0.9507]
[1759783870489,0.38346,4691.7,4691.6,0.9507]
[1759783870891,1.12756,4691.7,4691.6,0.9507]
[1759783876700,0.7441,4691.7,4691.2,1.52911436]
[1759783876894,0.38352,4690.9,4690.8,1.52911436]
[1759783877098,1.12762,4690.9,4690.8,0.213]
[1759783877294,0.7441,4690.9,4690.8,0.213]
[1759783879103,0.427,4690.9,4690.8,0.213]
[1759783879506,0.427,4690.9,4690.8,0.4345]
[1759783879706,0.5482,4690.9,4690.8,0.7805]
[1759783879910,0.3281,4690.9,4690.8,0.7805]
[1759783880908,0.3281,4690.9,4690.8,2.30961436]
[1759783881610,3.2078,4691.4,4690.8,2.30961436]
[1759783881810,0.5432,4691.3,4691.2,0.4266]
[1759783882009,0.5432,4691.3,4691.2,0.6396]
[1759783883408,0.5432,4691.3,4691.2,0.7805]
[1759783884709,0.5432,4691.3,4691.2,0.6396]
[1759783885216,0.3281,4691.3,4691.2,0.7805]
[1759783885508,3.7588,4692.0,4691.9,0.2215]
[1759783885710,3.7588,4692.0,4691.9,0.4345]
[1759783887410,4.0869,4692.0,4691.9,0.4345]
[1759783887909,4.0879,4692.0,4691.9,0.4345]
[1759783888617,4.0879,4692.0,4691.9,0.9542]
[1759783892219,4.0879,4692.0,4691.9,0.6396]
[1759783896823,0.7579,4692.0,4691.9,0.9415]
[1759783897325,0.8826,4692.0,4691.9,0.9415]
[1759783898523,0.3164,4692.0,4691.9,5.9415]
[1759783898923,0.8576,4692.0,4691.8,1.52911436]
[1759783899124,0.7319,4691.9,4691.8,1.52911436]
[1759783899319,0.7319,4691.9,4691.8,2.46171436]
[1759783899516,0.7319,4691.9,4691.8,43.26171436]
[1759783899718,0.7319,4691.9,4691.8,2.46171436]
[1759783901227,0.5201,4691.9,4691.8,2.46171436]
[1759783901425,0.5201,4691.9,4691.8,0.9326]
[1759783904130,0.7319,4691.9,4691.8,0.6307]
[1759783904930,0.7319,4691.9,4691.8,0.9326]
[1759783906229,0.7319,4691.9,4691.8,2.46171436]
[1759783907730,0.7319,4691.9,4691.8,2.15981436]
[1759783908030,0.7319,4691.9,4691.8,1.95131436]
[1759783908431,0.7319,4691.9,4691.8,2.27071436]
[1759783909734,0.7319,4691.9,4691.8,2.47631436]
[1759783911432,0.7319,4691.9,4691.8,0.9472]
[1759783911832,0.4165,4691.9,4691.3,5.42293665]
[1759783912036,0.7354,4691.9,4691.8,2.25701564]
[1759783912238,0.7354,4691.9,4691.8,2.47001564]
[1759783915334,0.7354,4691.9,4691.8,0.939]
[1759783919040,0.1329,4691.5,4691.4,1.89573665]
[1759783919240,0.8768,4691.5,4691.4,0.7334]
[1759783919636,0.8768,4691.5,4691.4,40.8]
[1759783919838,4.0846,4691.5,4691.4,0.213]
[1759783920039,0.7439,4690.8,4690.7,0.00209508]
[1759783920337,0.7439,4690.8,4690.7,0.21509508]
[1759783923048,0.7439,4690.8,4690.7,0.00209508]
[1759783923247,0.7439,4690.8,4690.7,0.21509508]
[1759783923437,0.7439,4690.8,4690.7,0.94109508]
[1759783923838,0.7439,4690.8,4690.7,0.21509508]
[1759783924046,3.9517,4690.8,4690.7,0.21509508]
[1759783926245,3.9517,4690.8,4690.7,0.00209508]
[1759783926445,3.9517,4690.8,4690.7,0.21509508]
[1759783936357,8.9517,4690.8,4690.7,0.00209508]
[1759783936547,0.7439,4690.2,4690.1,0.213]
[1759783937248,0.5361,4690.2,4690.1,0.939]
[1759783937551,0.5361,4690.2,4690.1,0.94110834]
[1759783940550,0.3217,4690.4,4690.1,0.62170834]
[1759783940753,0.3217,4690.4,4690.3,0.5165]
[1759783941055,0.3217,4690.7,4690.6,0.4208]
[1759783941246,0.5342,4690.7,4690.6,0.9462]
[1759783941954,0.3217,4690.7,4690.6,0.9462]
[1759783942253,3.5295,4690.8,4690.7,0.7332]
[1759783942452,3.742,4690.8,4690.7,0.7332]
[1759783944757,3.9476,4690.8,4690.7,0.7332]
[1759783948154,3.9476,4690.8,4690.7,0.4208]
[1759783948455,3.9476,4690.8,4690.7,0.7332]
[1759783948657,3.5295,4690.8,4690.7,0.7332]
[1759783948857,3.2078,4690.8,4690.7,0.7332]
[1759783949052,3.5295,4690.8,4690.7,0.7332]
[1759783949247,3.2078,4691.3,4690.8,0.3124]
[1759783949451,3.6259,4691.3,4691.2,0.7332]
[1759783949652,3.6259,4691.3,4691.2,41.7462]
[1759783950458,0.2125,4691.4,4691.3,0.7332]
[1759783951347,0.3217,4691.7,4691.6,0.4208]
[1759783951553,0.5342,4691.7,4691.6,0.9462]
[1759783951953,0.2125,4691.7,4691.6,0.9462]
[1759783953754,0.5342,4691.7,4691.6,0.9462]
[1759783954458,0.7398,4691.7,4691.6,0.9462]
[1759783956558,0.7398,4691.7,4691.6,0.7421]
[1759783956861,0.327,4691.6,4691.3,0.3251]
[1759783957061,0.5337,4691.3,4691.2,41.1251]
[1759783957562,0.2067,4691.3,4691.2,41.1251]
[1759783957754,0.2067,4691.3,4691.2,41.3381]
[1759783959356,0.2067,4691.7,4691.6,0.5256]
[1759783959561,0.2067,4691.7,4691.6,0.96]
[1759783960065,3.5348,4691.8,4691.7,0.3251]
[1759783960263,3.7415,4691.8,4691.7,0.3251]
[1759783960568,3.7415,4691.8,4691.7,0.747]
[1759783960863,3.4145,4691.8,4691.7,0.747]
[1759783961466,3.9558,4691.8,4691.7,0.747]
[1759783964059,0.327,4691.7,4691.6,0.213]
[1759783964369,0.748,4691.7,4691.6,0.213]
[1759783966272,1.13146,4691.7,4691.6,0.213]
[1759783966664,0.9587,4691.5,4691.3,0.2005]
[1759783966967,0.38344,4691.9,4691.8,0.3251]
[1759783967171,0.38344,4691.9,4691.8,0.96]
[1759783967369,0.59014,4691.9,4691.8,0.96]
[1759783967773,0.91714,4691.9,4691.8,0.96]
[1759783968876,1.13144,4691.9,4691.8,0.96]
[1759783969878,0.38345,4691.8,4691.7,40.8]
[1759783970078,0.92607,4691.6,4691.5,1.85964867]
[1759783970277,1.14047,4691.6,4691.5,2.29374867]
[1759783970780,1.14047,4691.6,4691.5,0.7609]
[1759783970975,1.14049,4691.3,4691.2,0.5479]
[1759783971179,1.14049,4691.3,4691.2,0.7609]
[1759783971474,0.434,4691.3,4691.2,1.3553]
[1759783971681,0.757,4691.3,4691.2,1.3553]
[1759783972278,0.434,4691.3,4691.2,2.88814867]
[1759783972772,0.2196,4691.3,4691.2,2.88814867]
[1759783974277,0.38348,4691.5,4691.2,2.88814867]
[1759783974582,0.60308,4691.5,4691.4,0.7588]
[1759783974878,0.60308,4691.5,4691.4,0.9718]
[1759783975079,0.92608,4691.5,4691.4,0.9718]
[1759783975879,1.14048,4691.5,4691.4,0.9718]
[1759783978275,1.14048,4691.5,4691.4,2.50464867]
[1759783979783,1.14048,4691.5,4691.4,2.88812867]
[1759783979979,1.14048,4691.5,4691.4,2.50464867]
[1759783980478,0.2196,4691.5,4691.4,2.50464867]
[1759783980673,0.2206,4692.0,4691.9,0.7588]
[1759783980873,0.2206,4692.0,4691.9,1.35524]
[1759783981080,0.001,4692.0,4691.9,1.35524]
[1759783982774,0.001,4692.0,4691.9,2.88785861]
[1759783983279,0.001,4692.0,4691.9,1.35524]
[1759783984686,0.001,4692.0,4691.9,42.15524]
[1759783987883,0.758,4692.0,4691.9,0.9718]
[1759783988084,0.001,4692.0,4691.9,1.35524]
[1759783991790,0.2206,4692.0,4691.9,1.35524]
[1759783992788,0.2206,4692.0,4691.9,0.9718]
[1759783992991,4.34924,4692.0,4691.9,0.9718]
[1759783993194,4.48214,4692.0,4691.9,0.213]
[1759783993394,4.48214,4692.0,4691.9,0.5398]
[1759783993594,4.48214,4692.0,4691.9,0.213]
[1759783995692,1.14049,4691.3,4691.2,0.3268]
[1759783995892,4.34829,4691.3,4691.2,0.5398]
[1759783996389,4.34829,4691.3,4691.2,0.7609]
[1759783997195,4.34829,4691.3,4691.2,0.9718]
[1759783999792,1.14049,4691.3,4691.2,0.9718]
[1759783999994,4.34829,4691.3,4691.2,0.9718]
[1759784002000,4.34829,4691.3,4691.2,0.7609]
[1759784007191,4.34829,4691.3,4691.2,0.213]
[1759784008399,4.70395,4691.3,4690.7,1.5311935]
[1759784008600,0.38357,4690.4,4690.3,0.3046]
[1759784008804,0.78888,4690.2,4690.1,0.50830834]
[1759784009000,1.11618,4690.2,4690.1,0.72130834]
[1759784017005,1.11618,4690.2,4690.1,0.00210834]
[1759784017202,1.11618,4690.2,4690.1,0.21510834]
[1759784018496,3.2078,4690.8,4690.5,0.1211]
[1759784018703,3.59132,4691.0,4690.8,0.70893]
[1759784018911,4.31162,4691.0,4690.9,0.9819]
[1759784021904,3.9281,4691.0,4690.9,0.9819]
[1759784022407,3.6235,4691.0,4690.9,0.9819]
[1759784023508,3.9281,4691.0,4690.9,0.9819]
[1759784026214,4.31162,4691.0,4690.9,0.9819]
[1759784027110,4.31162,4691.0,4690.9,1.36542]
[1759784027813,4.31162,4691.0,4690.9,0.9819]
[1759784028411,0.7285,4690.4,4690.3,0.5306]
[1759784028615,0.7285,4690.4,4690.3,0.9535]
[1759784028913,0.7285,4690.4,4690.3,41.7535]
[1759784029107,1.11207,4690.4,4690.2,0.38358]
[1759784029419,0.7285,4690.2,4690.1,0.00210834]
[1759784029616,0.7285,4690.2,4690.1,0.21510834]
[1759784029915,0.7285,4690.2,4690.1,0.74570834]
[1759784031108,0.7285,4690.2,4690.1,0.21510834]
[1759784031313,0.7285,4690.2,4690.1,0.95560834]
[1759784032710,0.2174,4690.2,4690.1,0.95560834]
[1759784033613,0.7285,4690.2,4690.1,0.95560834]
[1759784035216,4.31984,4690.7,4690.6,0.5306]
[1759784035413,3.9363,4690.7,4690.6,0.7436]
[1759784035613,3.9363,4690.7,4690.6,0.9535]
[1759784036921,0.7285,4690.7,4690.6,0.9535]
[1759784039217,1.11204,4690.7,4690.6,0.9535]
[1759784040417,0.4192,4690.7,4690.6,1.33705]
[1759784040818,1.11204,4690.7,4690.6,0.9535]
[1759784041818,1.11204,4690.7,4690.6,1.33705]
[1759784042021,0.7285,4690.7,4690.6,1.33705]
[1759784042516,1.11204,4690.7,4690.6,1.33705]
[1759784043616,0.4192,4690.7,4690.6,1.33705]
[1759784043815,0.2174,4691.0,4690.9,1.12402]
[1759784044124,0.2174,4691.0,4690.9,1.33702]
[1759784045124,0.5267,4691.0,4690.9,0.9535]
[1759784045321,0.7285,4691.0,4690.9,0.9535]
[1759784050326,1.11202,4691.0,4690.9,0.9535]
[1759784057830,4.34601226,4691.0,4690.9,0.9535]
[1759784060139,3.23399226,4691.0,4690.9,1.33702]
[1759784060338,3.61751226,4691.0,4690.9,1.33702]
[1759784060935,3.83091226,4691.0,4690.9,1.33702]
[1759784061833,3.83091226,4691.0,4690.9,0.9535]
[1759784062841,4.14501226,4691.0,4690.9,0.9535]
[1759784063340,4.36221226,4691.0,4690.9,2.4846935]
[1759784064737,4.36221226,4691.0,4690.9,2.8682135]
[1759784065238,4.36221226,4691.0,4690.9,2.4863059]
[1759784065738,4.36221226,4691.0,4690.9,2.8698259]
[1759784066139,4.36221226,4691.0,4690.9,0.9535]
[1759784066441,4.36221226,4691.0,4690.9,2.48630492]
[1759784067140,4.36221226,4691.0,4690.9,0.9535]
[1759784067342,4.36221226,4691.0,4690.9,2.48631213]
[1759784068140,4.36221226,4691.0,4690.9,0.9535]
[1759784068440,4.36221226,4691.0,4690.9,2.48634894]
[1759784069142,4.36221226,4691.0,4690.9,0.9535]
[1759784069531,4.36221226,4691.0,4690.9,1.33703]
[1759784070644,4.36221226,4691.0,4690.9,0.7436]
[1759784070833,0.38357,4690.3,4690.2,1.89573665]
[1759784071042,1.12827,4690.3,4690.2,0.213]
[1759784071937,1.15446226,4690.3,4690.2,0.213]
[1759784074545,0.77089226,4690.3,4690.2,0.213]
[1759784074745,0.77089226,4690.3,4690.2,1.33438]
[1759784074746,0.55369226,4690.3,4690.2,1.33438]
[1759784074947,0.55369226,4690.3,4690.2,2.86741657]
[1759784075850,0.77089226,4690.3,4690.2,2.86741657]
[1759784076349,0.77089226,4690.3,4690.2,1.33438]
[1759784076752,0.77089226,4690.3,4690.2,0.9508]
[1759784078448,0.81028,4690.2,4690.1,1.53514491]
[1759784078659,1.12318,4690.2,4690.1,0.21510834]
[1759784079048,1.14937226,4690.2,4690.1,0.21510834]
[1759784081454,1.14937226,4690.2,4690.1,0.00210834]
[1759784081659,1.14937226,4690.2,4690.1,0.21510834]
[1759784084255,0.76579226,4690.2,4690.1,0.74040834]
[1759784084452,1.14937226,4690.2,4690.1,1.12399834]
[1759784085261,1.14937226,4690.2,4690.1,1.33609834]
[1759784087061,1.14937226,4690.2,4690.1,0.95250834]
[1759784087763,1.14937226,4690.2,4690.1,1.33609834]
[1759784090262,1.14937226,4690.2,4690.1,0.95250834]
[1759784091065,1.14937226,4690.2,4690.1,1.33609834]
[1759784093765,1.14937226,4690.2,4690.1,0.95250834]
[1759784098368,1.14937226,4690.2,4690.1,0.00210834]
[1759784098569,1.14937226,4690.2,4690.1,0.54000834]
[1759784098968,1.14937226,4690.2,4690.1,0.75390834]
[1759784100173,0.4255,4689.9,4689.8,0.02976218]
[1759784100371,4.33001,4689.9,4689.8,0.02976218]
[1759784101173,9.35620226,4689.9,4689.8,0.03212249]
[1759784107368,9.56920226,4689.9,4689.8,0.03212249]
[1759784109780,9.35620226,4689.9,4689.8,0.03212249]
[1759784121076,9.35620226,4689.9,4689.8,0.33932249]
[1759784121976,9.35620226,4689.9,4689.8,0.03212249]
[1759784129684,4.35620226,4689.9,4689.8,0.03212249]
[1759784130286,7.14180006,4689.9,4689.8,0.03212249]
[1759784132988,7.14180006,4689.9,4689.8,2.49e-06]
[1759784133283,12.62091756,4689.9,4689.8,2.49e-06]
[1759784133488,12.83391756,4689.9,4689.8,2.49e-06]
[1759784142191,12.62091756,4689.9,4689.8,2.49e-06]
[1759784142392,7.83391756,4689.9,4689.8,2.49e-06]
[1759784142788,7.62091756,4689.9,4689.8,2.49e-06]
[1759784142991,7.83391756,4689.9,4689.8,2.49e-06]
[1759784143287,7.83391756,4689.9,4689.8,0.52490249]
[1759784143487,7.62091756,4689.9,4689.8,0.52490249]
[1759784143689,7.35480006,4689.9,4689.8,0.72640249]
[1759784144093,7.14180006,4689.9,4689.8,0.72640249]
[1759784144287,7.35480006,4689.9,4689.8,0.72640249]
[1759784146194,7.34550006,4689.9,4689.8,0.72640249]
[1759784146691,7.34550006,4689.9,4689.8,2.49e-06]
[1759784146893,7.13250006,4689.9,4689.8,2.49e-06]
[1759784147088,7.34550006,4689.9,4689.8,0.20390249]
[1759784147288,7.34550006,4689.9,4689.8,0.52490249]
[1759784147486,7.13250006,4689.9,4689.8,0.52490249]
[1759784147995,7.34550006,4689.9,4689.8,0.52490249]
[1759784149298,7.34550006,4689.9,4689.8,2.49e-06]
[1759784149498,7.34550006,4689.9,4689.8,0.76020249]
[1759784149899,4.34690226,4689.9,4689.8,0.76020249]
[1759784150098,4.55990226,4689.9,4689.8,0.76020249]
[1759784150700,4.55990226,4689.9,4689.8,0.53890249]
[1759784150902,4.55990226,4689.9,4689.8,0.32260249]
[1759784151299,4.55990226,4689.9,4689.8,0.53890249]
[1759784151901,3.82300226,4689.9,4689.8,0.76020249]
[1759784152404,4.56770226,4689.9,4689.8,0.76020249]
[1759784153710,4.35470226,4689.9,4689.8,0.76020249]
[1759784153906,4.56770226,4689.9,4689.8,0.76020249]
[1759784154604,4.35470226,4689.9,4689.8,0.76020249]
[1759784154809,4.56770226,4689.9,4689.8,0.76020249]
[1759784155613,4.03600226,4689.9,4689.8,0.76020249]
[1759784155909,4.36450226,4689.9,4689.8,0.76020249]
[1759784156802,3.82300226,4689.9,4689.8,0.76020249]
[1759784157002,3.82300226,4689.9,4689.8,5.76020249]
[1759784157508,4.15150226,4689.9,4689.8,5.76020249]
[1759784157706,3.82300226,4689.9,4689.8,5.76020249]
[1759784161015,3.61760226,4689.9,4689.8,5.76020249]
[1759784162107,3.82650226,4689.9,4689.8,5.76020249]
[1759784162813,4.35820226,4689.9,4689.8,5.76020249]
[1759784164415,4.02970226,4689.9,4689.8,5.76020249]
[1759784164715,3.82650226,4689.9,4689.8,5.76020249]
[1759784166017,3.82650226,4689.9,4689.8,5.97320249]
[1759784166514,3.61760226,4689.9,4689.8,5.97320249]
[1759784167919,3.82650226,4689.9,4689.8,5.97320249]
[1759784169219,3.61760226,4689.9,4689.8,5.97320249]
[1759784174021,0.213,4690.6,4689.8,5.97320249]
[1759784174022,0.38356,4690.6,4690.5,0.73225]
[1759784174329,0.38354,4690.7,4690.6,0.7602]
[1759784174528,0.38354,4690.7,4690.6,41.5602]
[1759784174730,0.38354,4690.7,4690.6,1.14375]
[1759784177330,0.38354,4690.7,4690.6,0.7602]
[1759784177723,1.12414,4690.7,4690.6,0.7602]
[1759784177919,1.12414,4690.7,4690.6,0.9732]
[1759784180432,1.12414,4690.7,4690.6,0.213]
[1759784180925,0.38354,4690.7,4690.6,0.9403]
[1759784181720,0.59354,4690.7,4690.6,0.9403]
[1759784183328,0.59354,4690.7,4690.6,1.32385]
[1759784183329,0.38354,4690.7,4690.6,1.32385]
[1759784183533,0.38354,4690.7,4690.6,0.9403]
[1759784184228,0.38354,4690.7,4690.6,1.32385]
[1759784184640,0.38354,4690.7,4690.6,0.9403]
[1759784186634,1.10294,4690.7,4690.6,0.7273]
[1759784186836,1.10294,4690.7,4690.6,0.9403]
[1759784191037,1.10294,4690.7,4690.6,0.7273]
[1759784191238,1.10294,4690.7,4690.6,0.9403]
[1759784192439,1.10294,4690.7,4690.6,0.7273]
[1759784192638,1.10294,4690.7,4690.6,0.9403]
[1759784195438,1.10294,4690.7,4690.6,0.3024]
[1759784195636,1.10296,4690.5,4690.4,0.9403]
[1759784201643,1.10296,4690.5,4690.4,0.7273]
[1759784201841,1.10296,4690.5,4690.4,0.9403]
[1759784204642,0.59356,4690.5,4690.4,0.9403]
[1759784205039,1.13536,4690.5,4690.4,0.9403]
[1759784207344,1.13536,4690.5,4690.4,0.7289]
[1759784208443,1.25896,4690.5,4690.4,0.7289]
[1759784208748,1.25896,4690.5,4690.4,0.5159]
[1759784208950,1.25896,4690.5,4690.4,0.5154]
[1759784210253,4.46676,4690.5,4690.4,0.213]
[1759784214848,0.82628,4690.2,4690.1,0.5458]
[1759784215045,1.14138,4690.2,4690.1,0.7588]
[1759784222953,1.14138,4690.2,4690.1,0.9607]
[1759784223653,1.14138,4690.2,4690.1,0.7477]
[1759784223952,1.14138,4690.2,4690.1,0.9607]
[1759784226055,0.82628,4690.2,4690.1,0.9607]
[1759784226447,0.60538,4690.2,4690.1,0.9607]
[1759784226750,0.38358,4690.2,4690.1,0.9607]
[1759784226953,0.3151,4690.5,4690.1,0.9607]
[1759784226954,0.4427,4690.8,4690.7,0.4147]
[1759784227255,0.7578,4690.8,4690.7,0.7477]
[1759784228355,1.14133,4690.8,4690.7,0.7477]
[1759784228552,0.60533,4690.8,4690.7,0.7477]
[1759784230755,0.38353,4690.8,4690.7,0.7477]
[1759784230955,1.14133,4690.8,4690.7,0.7477]
[1759784236159,0.60533,4690.8,4690.7,0.7477]
[1759784236357,0.38353,4690.8,4690.7,0.7477]
[1759784247467,0.59073,4690.8,4690.7,0.7477]
[1759784250468,0.38353,4690.8,4690.7,0.7477]
[1759784250666,0.3297,4691.0,4690.7,0.7477]
[1759784250870,0.38353,4690.8,4690.7,0.79824]
[1759784251369,0.38353,4690.8,4690.7,1.10204]
[1759784254471,0.7541,4690.8,4690.2,1.83683657]
[1759784254665,0.59073,4690.9,4690.8,0.4166]
[1759784254966,0.3835,4691.2,4691.1,0.7204]
[1759784255568,0.5907,4691.2,4691.1,0.7204]
[1759784256172,0.9204,4691.2,4691.1,0.7204]
[1759784256975,1.1376,4691.2,4691.1,0.7204]
[1759784257271,1.1376,4691.2,4691.1,0.7278]
[1759784258666,1.1376,4691.2,4691.1,0.5148]
[1759784258875,0.68935,4690.6,4690.5,41.2401]
[1759784259073,0.90465,4690.6,4690.5,1.0701]
[1759784259374,0.59885,4690.6,4690.5,1.0701]
[1759784261377,0.38355,4690.6,4690.5,1.0701]
[1759784262077,0.38355,4690.6,4690.5,1.45366]
[1759784266882,0.90465,4690.6,4690.5,1.0701]
[1759784269483,0.59885,4690.6,4690.5,1.0701]
[1759784269976,0.59885,4690.6,4690.5,0.8571]
[1759784270279,0.59885,4690.6,4690.5,1.45366]
[1759784273381,0.59885,4690.6,4690.5,4.66146]
[1759784273982,0.59885,4690.6,4690.5,4.2779]
[1759784274479,0.59885,4690.6,4690.5,4.66146]
[1759784276983,0.59885,4690.6,4690.5,4.2779]
[1759784278083,0.91575,4690.6,4690.5,4.2779]
[1759784279078,0.91575,4690.6,4690.5,4.66146]
[1759784280284,0.59885,4690.6,4690.5,4.66146]
[1759784282984,0.38355,4690.6,4690.5,4.66146]
[1759784287580,0.59508,4691.4,4691.3,0.7476]
[1759784287783,0.59508,4691.4,4691.3,0.9606]
[1759784287987,0.81198,4691.4,4691.3,0.9606]
[1759784288182,1.12888,4691.4,4691.3,0.9606]
[1759784296393,0.38348,4691.5,4691.4,0.7476]
[1759784296693,0.38348,4691.5,4691.4,2.28205256]
[1759784297095,0.38348,4691.5,4691.4,2.66553256]
[1759784297397,0.38348,4691.5,4691.4,2.66483206]
[1759784299696,0.38348,4691.5,4691.4,1.13108]
[1759784300294,0.38348,4691.5,4691.4,2.66385111]
[1759784304096,0.38348,4691.5,4691.4,2.28037111]
[1759784304794,0.38348,4691.5,4691.4,2.66385111]
[1759784308400,0.38348,4691.5,4691.4,1.13108]
[1759784310395,0.38348,4691.5,4691.4,0.7476]
[1759784311402,0.38348,4691.5,4691.4,1.13108]
[1759784311700,0.38348,4691.5,4691.4,1.34408]
[1759784312603,0.38348,4691.5,4691.4,0.7507]
[1759784312604,1.13088,4691.5,4691.4,0.7507]
[1759784312800,0.4248,4691.5,4691.4,0.9568]
[1759784313101,0.38348,4691.5,4691.4,1.34028]
[1759784313300,0.38347,4691.7,4691.6,0.4279]
[1759784313500,0.38347,4691.7,4691.6,0.9641]
[1759784314597,0.38347,4691.7,4691.6,1.34757]
[1759784314804,0.38347,4691.7,4691.6,0.9641]
[1759784318205,0.38347,4691.7,4691.6,1.34757]
[1759784318406,0.38347,4691.7,4691.6,0.9641]
[1759784322216,0.38347,4691.7,4691.6,1.34757]
[1759784323406,0.38345,4691.8,4691.7,0.38344]
[1759784323606,0.38345,4691.8,4691.7,1.31274]
[1759784324010,0.38345,4691.8,4691.7,0.9293]
[1759784324209,0.38345,4691.8,4691.7,1.31276]
[1759784326617,0.38345,4691.8,4691.7,0.9293]
[1759784329119,0.59225,4691.8,4691.7,0.9293]
[1759784329513,0.92225,4691.8,4691.7,0.9293]
[1759784330621,0.71345,4691.8,4691.7,0.7386]
[1759784330819,0.71345,4691.8,4691.7,0.9516]
[1759784330820,0.92605,4691.8,4691.7,0.9516]
[1759784331723,1.13395,4691.8,4691.7,0.9516]
[1759784333021,1.13395,4691.8,4691.7,2.48437111]
[1759784333716,1.13395,4691.8,4691.7,2.06007111]
[1759784333920,1.13395,4691.8,4691.7,2.27307111]
[1759784334423,1.13395,4691.8,4691.7,1.53277111]
[1759784334622,1.13395,4691.8,4691.7,0.213]
[1759784335322,0.80395,4691.8,4691.7,0.3259]
[1759784335514,1.13395,4691.8,4691.7,0.5389]
[1759784336314,0.80395,4691.8,4691.7,0.213]
[1759784337019,1.13395,4691.8,4691.7,0.213]
[1759784337222,1.13395,4691.8,4691.7,0.5389]
[1759784338616,0.4205,4691.8,4691.7,2.86783111]
[1759784338821,0.38344,4691.9,4691.8,1.12204]
[1759784339029,0.59604,4691.9,4691.8,1.12204]
[1759784339527,0.92604,4691.9,4691.8,1.12204]
[1759784339722,0.2126,4691.9,4691.8,2.86781111]
[1759784340228,0.2126,4691.9,4691.8,2.48437111]
[1759784342127,0.38444,4692.0,4691.8,2.15847111]
[1759784342327,0.38444,4692.0,4691.9,0.7386]
[1759784345023,0.38444,4692.0,4691.9,2.27137111]
[1759784345230,1.13494,4692.0,4691.9,2.27137111]
[1759784345837,0.2136,4692.0,4691.9,2.65481111]
[1759784346129,0.38444,4692.0,4691.9,2.65481111]
[1759784348029,0.38606955,4692.3,4692.2,0.79612]
[1759784348331,0.38606955,4692.3,4692.2,0.9516]
[1759784348729,0.38606955,4692.3,4692.2,2.86853456]
[1759784349228,0.00265955,4692.3,4692.2,1.33502]
[1759784349822,0.38606955,4692.3,4692.2,1.33502]
[1759784350328,0.38606955,4692.3,4692.2,2.86755781]
[1759784350529,0.38606955,4692.3,4692.2,1.33502]
[1759784350924,0.00265955,4692.3,4692.2,1.33502]
[1759784351228,0.00265955,4692.3,4692.2,2.86725911]
[1759784351529,0.38606955,4692.3,4692.2,2.86725911]
[1759784352229,0.5426,4692.8,4692.7,0.4127]
[1759784352430,0.5426,4692.8,4692.7,2.10059176]
[1759784352930,0.92597,4692.8,4692.7,2.10059176]
[1759784353129,0.92832301,4692.8,4692.7,1.9611554]
[1759784353334,1.13622301,4692.8,4692.7,1.9611554]
[1759784356429,1.13622301,4692.8,4692.7,1.7481554]
[1759784356630,0.7505,4692.6,4692.5,1.14899176]
[1759784356830,0.7505,4692.6,4692.5,1.36199176]
[1759784357830,0.7505,4692.6,4692.5,1.14899176]
[1759784358034,0.7505,4692.6,4692.5,1.36199176]
[1759784359032,0.7505,4692.6,4692.5,1.67229176]
[1759784359233,0.7505,4692.6,4692.5,1.88829176]
[1759784359433,0.7505,4692.6,4692.5,2.09859176]
[1759784361136,0.7505,4692.6,4692.5,1.88559176]
[1759784361439,0.7505,4692.6,4692.5,2.09859176]
[1759784362136,0.7505,4692.6,4692.5,1.88559176]
[1759784362335,0.7505,4692.6,4692.5,2.09859176]
[1759784362729,0.00235301,4692.8,4692.5,2.60248176]
[1759784362938,0.38572301,4692.8,4692.7,2.2679264]
[1759784363229,0.38572301,4692.8,4692.7,2.26744721]
[1759784363429,0.70602301,4692.8,4692.7,2.26744721]
[1759784364030,0.38572301,4692.8,4692.7,2.26744721]
[1759784365540,0.38572301,4692.8,4692.7,2.48044721]
[1759784366138,0.38572301,4692.8,4692.7,0.9496]
[1759784366334,0.59982301,4692.8,4692.7,2.26744721]